bitfinex/quotes_ETHUSD_20250813
["timestamp","ask_amount","ask_price","bid_price","bid_amount"]
[1755076190100,14.5,4625.5,4625.4,4.243]
[1755076190770,14.5,4625.5,4625.4,20.36693239]
[1755076194500,14.5,4625.5,4625.4,3.3]
[1755076195278,14.5,4625.5,4625.4,5.993]
[1755076195497,14.5,4625.5,4625.4,11.173]
[1755076196691,14.5,4625.5,4625.4,7.873]
[1755076196891,14.5,4625.5,4625.4,11.6139]
[1755076197097,14.5,4625.5,4625.4,11.173]
[1755076197304,14.5,4625.5,4625.4,7.873]
[1755076197500,14.5,4625.5,4625.4,11.172]
[1755076198698,14.5,4625.5,4625.4,8.478]
[1755076199890,14.5,4625.5,4625.4,3.7325]
[1755076200091,14.5,4625.5,4625.4,4.2242]
[1755076202687,14.5,4625.5,4625.3,0.001]
[1755076202891,0.012,4626.7,4625.4,4.2232]
[1755076203290,14.5,4625.5,4625.4,4.2232]
[1755076205399,14.5,4625.5,4625.4,12.0962]
[1755076207400,14.5,4625.5,4625.4,8.7992]
[1755076207591,14.5,4625.5,4625.4,12.0942]
[1755076209411,14.5,4625.5,4625.4,8.7992]
[1755076209613,14.5,4625.5,4625.4,12.0942]
[1755076210418,14.5,4625.5,4625.4,9.4012]
[1755076212834,14.5,4625.5,4625.4,8.475]
[1755076213448,14.5,4625.5,4625.4,8.9095]
[1755076213628,14.5,4625.5,4625.4,4.2212]
[1755076213945,0.002,4626.8,4625.4,4.2212]
[1755076214112,0.002,4626.8,4625.9,16.12393239]
[1755076214313,0.002,4626.8,4626.0,3.292]
[1755076214530,14.5,4626.4,4626.0,4.2182]
[1755076214726,14.5,4626.4,4626.0,3.292]
[1755076214936,14.5,4626.4,4626.1,0.9262]
[1755076215111,14.5,4626.4,4626.2,3.292]
[1755076215312,14.5,4626.4,4626.3,8.7992]
[1755076218108,14.5,4626.4,4626.3,6.1062]
[1755076221068,14.5,4626.4,4626.3,0.9262]
[1755076222540,14.5,4626.4,4626.3,3.29]
[1755076222739,15.95,4626.4,4626.3,3.29]
[1755076223369,14.5,4626.4,4626.3,3.29]
[1755076224750,14.5,4626.4,4626.3,3.7245]
[1755076225252,14.5,4626.4,4626.3,3.29]
[1755076225556,14.5,4626.4,4626.3,11.161]
[1755076225751,14.5,4626.4,4626.3,11.5955]
[1755076225955,14.5,4626.4,4626.3,11.161]
[1755076226762,15.33625477,4626.4,4626.3,7.872]
[1755076226934,15.33625477,4626.4,4626.3,11.161]
[1755076227123,15.44425477,4626.4,4626.3,11.161]
[1755076232383,15.44425477,4626.4,4626.3,8.467]
[1755076232587,15.45625477,4626.4,4625.3,0.001]
[1755076232784,1.54562548,4626.3,4625.3,0.001]
[1755076232982,0.12,4626.4,4625.3,0.001]
[1755076233166,14.5,4625.4,4625.3,0.001]
[1755076233466,14.608,4625.4,4625.3,0.001]
[1755076233881,14.608,4625.4,4625.3,3.292]
[1755076234481,14.608,4625.4,4624.9,0.001]
[1755076234637,0.108,4625.0,4624.9,0.001]
[1755076235044,0.108,4625.0,4624.9,0.4461]
[1755076235045,14.608,4625.0,4624.9,0.4461]
[1755076235273,14.608,4625.0,4624.9,0.9081]
[1755076235496,14.608,4625.0,4624.9,7.873]
[1755076235646,14.608,4625.0,4624.9,11.166]
[1755076235968,15.9608,4625.0,4624.9,5.18]
[1755076236291,15.9728,4625.0,4624.9,8.474]
[1755076236889,15.9728,4625.0,4624.9,5.18]
[1755076237393,15.9608,4625.0,4624.9,5.18]
[1755076237549,15.9608,4625.0,4624.9,5.6251]
[1755076237750,15.9608,4625.0,4624.9,6.0871]
[1755076238161,15.9608,4625.0,4624.9,8.475]
[1755076239502,14.5,4625.0,4624.9,4.2021]
[1755076240098,14.5,4625.0,4624.9,4.7521]
[1755076243082,14.5,4625.0,4624.9,7.7521]
[1755076245466,14.5,4625.0,4624.9,15.6251]
[1755076245998,14.5,4625.0,4624.9,15.7331]
[1755076247649,14.5,4625.0,4624.9,11.167]
[1755076248338,15.9608,4625.0,4624.9,8.474]
[1755076248649,16.0688,4625.0,4624.8,0.001]
[1755076248834,0.002,4626.8,4624.9,20.32503239]
[1755076249051,0.002,4626.8,4625.5,0.55]
[1755076249242,0.002,4626.8,4625.6,3.296]
[1755076249548,0.002,4626.8,4625.6,3.7411]
[1755076249716,14.5,4625.7,4625.6,3.7411]
[1755076249919,14.5,4625.7,4625.6,4.2031]
[1755076250753,14.5,4625.7,4625.6,3.7411]
[1755076253063,14.5,4625.7,4625.6,4.2911]
[1755076253251,14.5,4625.7,4625.6,4.7531]
[1755076254255,14.5,4625.7,4625.6,7.7531]
[1755076255361,14.5,4625.7,4625.6,15.6261]
[1755076255748,14.5,4625.7,4625.6,14.6141]
[1755076256059,14.5,4625.7,4625.6,8.9211]
[1755076256255,14.5,4625.7,4625.6,9.3831]
[1755076256459,14.5,4625.7,4625.6,4.2031]
[1755076257460,14.5,4625.7,4625.6,6.296]
[1755076257966,14.5,4625.7,4625.6,3.296]
[1755076258446,15.95,4625.7,4625.6,3.296]
[1755076258963,16.058,4625.7,4625.6,3.296]
[1755076261533,16.058,4625.7,4625.6,4.036]
[1755076262135,16.058,4625.7,4625.0,0.4623]
[1755076262349,0.108,4625.3,4625.0,0.4623]
[1755076262548,0.108,4625.3,4625.2,0.74]
[1755076262758,14.608,4625.3,4625.2,0.74]
[1755076263341,14.608,4625.3,4625.2,4.031]
[1755076264866,16.0688,4625.3,4625.2,0.74]
[1755076265064,16.0688,4625.3,4625.2,4.031]
[1755076265265,16.0808,4625.3,4625.2,4.031]
[1755076265586,16.0808,4625.3,4625.2,5.179]
[1755076266448,16.0808,4625.3,4624.8,0.001]
[1755076266687,0.012,4625.2,4624.9,3.291]
[1755076267175,14.608,4625.0,4624.8,0.001]
[1755076267544,0.012,4624.9,4624.8,0.001]
[1755076267967,14.512,4624.9,4624.8,0.001]
[1755076268174,15.974,4624.9,4624.8,0.001]
[1755076268554,15.974,4624.9,4624.8,3.292]
[1755076268892,15.974,4624.9,4624.3,0.001]
[1755076269070,1.462,4624.9,4624.3,0.001]
[1755076269242,0.012,4624.8,4624.3,0.001]
[1755076269447,14.608,4624.5,4624.3,0.001]
[1755076270051,14.608,4624.5,4624.3,16.12493239]
[1755076270052,14.5,4624.5,4624.3,16.12493239]
[1755076270258,14.5,4624.5,4624.4,3.353]
[1755076270578,14.5,4624.5,4624.4,4.2701]
[1755076273949,14.5,4624.5,4624.4,3.8153]
[1755076274276,14.5,4624.5,4624.4,4.2701]
[1755076275348,14.5,4624.5,4624.4,12.1441]
[1755076275663,14.87704786,4624.5,4624.4,11.227]
[1755076276058,14.87704786,4624.5,4624.4,5.18]
[1755076276375,14.88904786,4624.5,4624.4,5.18]
[1755076276959,14.88904786,4624.5,4624.3,0.001]
[1755076277256,0.37704786,4624.5,4624.3,0.001]
[1755076277451,0.012,4624.9,4624.4,3.352]
[1755076277767,14.5,4624.5,4624.4,3.352]
[1755076280155,14.608,4624.5,4624.4,3.352]
[1755076281093,14.608,4624.5,4624.3,0.001]
[1755076281256,0.108,4624.5,4624.3,0.001]
[1755076281656,14.5,4624.4,4624.3,0.001]
[1755076281987,15.9608,4624.4,4624.3,0.001]
[1755076282489,15.9608,4624.4,4624.3,3.349]
[1755076282662,15.9608,4624.4,4624.0,0.001]
[1755076282869,0.108,4624.1,4624.0,0.9181]
[1755076283285,14.608,4624.1,4624.0,0.9181]
[1755076284159,14.608,4624.1,4624.0,4.2701]
[1755076285053,14.5,4624.1,4624.0,4.2701]
[1755076285359,14.5,4624.1,4624.0,12.1451]
[1755076286493,14.5,4624.1,4624.0,15.1451]
[1755076288771,14.5,4624.1,4624.0,12.4511]
[1755076290900,14.5,4624.1,4624.0,7.2701]
[1755076293413,0.11,4624.5,4624.0,7.2701]
[1755076293414,0.11,4624.5,4624.1,0.55]
[1755076293707,0.002,4625.0,4624.5,0.55]
[1755076293921,0.002,4625.0,4624.9,16.12393239]
[1755076294216,0.002,4625.0,4624.9,19.47193239]
[1755076294370,14.502,4625.0,4624.9,20.37783239]
[1755076295413,0.002,4625.7,4625.0,3.55]
[1755076295587,0.002,4625.7,4625.5,0.108]
[1755076295926,0.002,4625.7,4625.6,3.347]
[1755076296233,0.002,4625.7,4625.6,4.2529]
[1755076296415,14.502,4625.7,4625.6,4.2529]
[1755076296979,14.502,4625.7,4625.6,3.347]
[1755076297195,14.502,4625.7,4625.6,4.2529]
[1755076298119,0.002,4626.8,4625.7,3.55]
[1755076298289,4.9617,4629.0,4626.2,0.55]
[1755076298490,0.108,4628.1,4627.1,3.55]
[1755076298690,0.108,4628.1,4627.4,0.108]
[1755076298893,0.108,4628.1,4627.5,4.2589]
[1755076299106,14.5,4628.0,4627.6,4.4559]
[1755076299412,14.5,4628.0,4627.6,3.0]
[1755076299780,14.5,4628.0,4627.6,3.476]
[1755076299980,14.5,4628.0,4627.7,0.9059]
[1755076300181,14.5,4628.0,4627.8,3.352]
[1755076300411,14.5,4628.0,4627.9,3.353]
[1755076300813,16.23411665,4628.0,4627.9,3.353]
[1755076301583,15.77241665,4628.0,4627.9,3.353]
[1755076302002,14.5,4628.0,4627.9,4.2589]
[1755076302833,14.5,4628.0,4627.9,3.353]
[1755076304032,14.9617,4628.0,4627.9,3.353]
[1755076305441,14.9617,4628.0,4627.9,11.224]
[1755076306039,14.9777,4628.0,4627.9,11.224]
[1755076306280,16.49127,4628.0,4627.9,11.224]
[1755076306418,16.47527,4628.0,4627.9,11.224]
[1755076307134,16.49127,4628.0,4627.9,11.224]
[1755076307445,16.49127,4628.0,4627.9,5.178]
[1755076307614,19.49127,4628.0,4627.9,5.178]
[1755076308034,19.49127,4628.0,4626.1,0.476]
[1755076308348,0.108,4626.7,4626.1,0.476]
[1755076308641,0.108,4626.7,4626.2,3.348]
[1755076309138,0.108,4626.7,4626.3,0.9059]
[1755076309639,14.5,4626.4,4626.3,0.9059]
[1755076315552,14.5,4626.4,4626.3,8.7769]
[1755076315753,14.5,4626.4,4626.3,9.3269]
[1755076316055,14.5,4626.4,4626.3,9.4349]
[1755076318151,14.5,4626.4,4626.3,6.7419]
[1755076318743,0.108,4627.3,4626.4,3.55]
[1755076318926,0.002,4627.4,4626.6,0.55]
[1755076319123,0.002,4627.4,4627.0,0.108]
[1755076319326,0.002,4627.4,4627.1,3.34]
[1755076319761,14.5,4627.2,4627.1,3.34]
[1755076321343,15.9502,4627.2,4627.1,3.34]
[1755076323459,16.4131,4627.2,4627.1,3.34]
[1755076324353,15.9502,4627.2,4627.1,3.34]
[1755076324661,15.9502,4627.2,4627.1,3.8367]
[1755076325358,15.9502,4627.2,4627.1,12.1967]
[1755076326540,15.9502,4627.2,4627.1,11.7]
[1755076327935,16.4131,4627.2,4627.1,11.7]
[1755076328369,15.9502,4627.2,4627.1,11.7]
[1755076330478,15.9522,4627.2,4627.1,9.008]
[1755076330934,14.502,4627.2,4627.1,9.008]
[1755076331964,14.9649,4627.2,4627.1,9.008]
[1755076332164,15.16680712,4627.2,4627.1,9.008]
[1755076332880,15.16680712,4627.2,4627.1,5.668]
[1755076333088,15.16680712,4627.2,4627.1,8.999]
[1755076333381,16.69448783,4627.2,4627.1,8.999]
[1755076334949,16.69458246,4627.2,4627.1,8.999]
[1755076335255,16.71058246,4627.2,4627.1,8.999]
[1755076335449,16.7105861,4627.2,4627.1,8.999]
[1755076335844,16.7105861,4627.2,4627.1,5.668]
[1755076336077,16.7105861,4627.2,4627.1,5.178]
[1755076336456,16.7105861,4627.2,4626.8,2.693]
[1755076336657,0.108,4626.9,4626.8,2.693]
[1755076336885,0.31000539,4626.9,4625.8,0.001]
[1755076337057,0.20200539,4626.8,4625.9,3.329]
[1755076337381,0.108,4626.0,4625.9,3.329]
[1755076337546,14.608,4626.0,4625.9,3.8257]
[1755076337752,14.608,4626.0,4625.9,4.2941]
[1755076339053,14.608,4626.0,4625.9,3.8257]
[1755076339385,14.608,4626.0,4625.9,4.2941]
[1755076345409,14.608,4626.0,4625.9,12.1661]
[1755076347903,14.608,4626.0,4625.9,11.6977]
[1755076349805,14.608,4626.0,4625.9,9.0047]
[1755076349995,14.608,4626.0,4625.9,9.4363]
[1755076352196,14.608,4626.0,4625.9,4.2573]
[1755076353413,14.5,4626.0,4625.9,4.3653]
[1755076354819,14.5,4626.0,4625.9,7.3653]
[1755076355394,14.5,4626.0,4625.9,15.2373]
[1755076357936,14.5,4626.0,4625.9,12.5443]
[1755076358904,14.5,4626.0,4625.9,7.3653]
[1755076362800,0.108,4626.6,4625.9,7.3653]
[1755076363307,14.5,4626.0,4625.9,6.437]
[1755076363809,14.5,4626.0,4625.9,7.3466]
[1755076365296,14.5,4626.0,4625.9,15.2186]
[1755076365728,14.5,4626.0,4625.9,15.7686]
[1755076368100,14.5,4626.0,4625.9,13.0756]
[1755076368621,14.5,4626.0,4625.9,7.8966]
[1755076372134,14.5,4626.0,4625.9,6.416]
[1755076372333,14.5,4626.0,4625.9,3.108]
[1755076372635,16.408,4626.0,4625.9,3.415]
[1755076373130,16.516,4626.0,4625.9,3.307]
[1755076374108,16.532,4626.0,4625.9,3.307]
[1755076374538,16.532,4626.0,4625.8,0.001]
[1755076374741,0.108,4626.0,4625.9,3.307]
[1755076374939,0.108,4626.0,4625.8,0.001]
[1755076375126,14.5,4625.9,4625.8,0.001]
[1755076375332,14.974,4625.9,4625.8,5.179]
[1755076375929,15.17580676,4625.9,4625.8,5.178]
[1755076376115,16.70418744,4625.9,4625.8,5.178]
[1755076377443,16.70418744,4625.9,4625.8,8.486]
[1755076377646,16.70418744,4625.9,4625.8,5.179]
[1755076378742,16.70418744,4625.9,4624.9,0.001]
[1755076378944,0.67557214,4625.8,4625.0,3.306]
[1755076379248,0.108,4625.1,4625.0,3.306]
[1755076379453,15.0738,4625.1,4625.0,3.306]
[1755076379819,15.0898,4625.1,4625.0,3.306]
[1755076380321,15.0898,4625.1,4624.9,0.001]
[1755076380517,0.4818,4625.0,4624.9,0.001]
[1755076380917,14.9818,4625.0,4624.9,0.001]
[1755076381118,16.49078,4625.0,4624.9,0.001]
[1755076381369,20.2422964,4625.0,4624.9,0.001]
[1755076381520,20.3287254,4625.0,4624.9,0.001]
[1755076381721,20.3287254,4625.0,4624.9,2.377]
[1755076382036,5.75655568,4624.9,4624.0,0.001]
[1755076382217,0.55,4624.7,4624.0,0.001]
[1755076382418,0.108,4624.1,4624.0,0.001]
[1755076382618,14.608,4624.1,4624.0,0.001]
[1755076382851,14.9658,4624.1,4624.0,0.001]
[1755076383034,16.57038,4624.1,4624.0,0.001]
[1755076383637,16.57038,4624.1,4624.0,3.308]
[1755076384021,16.10458,4624.1,4624.0,3.308]
[1755076385022,14.608,4624.1,4624.0,4.2601]
[1755076385219,14.5,4624.1,4624.0,4.2601]
[1755076385461,14.5,4624.1,4624.0,15.1341]
[1755076386455,14.5,4624.1,4624.0,17.95472975]
[1755076386655,14.5,4624.1,4624.0,15.26072975]
[1755076387519,0.108,4625.1,4624.3,0.55]
[1755076387722,0.108,4625.5,4624.6,2.16233206]
[1755076387946,14.5,4625.0,4624.8,0.108]
[1755076388142,14.5,4625.0,4624.9,4.2611]
[1755076388523,14.5,4625.0,4624.9,4.9191]
[1755076388736,0.108,4625.9,4625.0,0.55]
[1755076388961,0.108,4625.9,4625.0,0.4795]
[1755076389132,0.078459,4627.1,4624.9,3.7816]
[1755076389338,0.108,4625.3,4624.9,3.7816]
[1755076389657,0.108,4625.3,4625.0,0.9521]
[1755076390156,0.108,4625.3,4625.1,0.9521]
[1755076390533,0.108,4625.3,4625.2,0.9521]
[1755076390735,14.608,4625.3,4625.2,0.9521]
[1755076390951,0.078459,4627.1,4625.0,3.0]
[1755076391163,0.078459,4627.1,4625.1,3.31]
[1755076391164,0.108,4625.3,4625.1,3.31]
[1755076391462,0.108,4625.2,4625.1,3.31]
[1755076392056,14.608,4625.2,4625.1,3.31]
[1755076393877,0.119,4625.9,4625.1,3.31]
[1755076394374,0.647923,4626.2,4625.1,3.7826]
[1755076394540,0.119,4626.8,4625.2,0.9521]
[1755076394870,0.647848,4626.7,4625.4,0.55]
[1755076395369,0.647848,4626.7,4625.7,5.18]
[1755076395524,0.119,4626.8,4625.8,3.309]
[1755076396148,0.647825,4627.0,4625.8,3.309]
[1755076396328,0.647825,4627.0,4625.9,0.4726]
[1755076397046,0.647825,4627.0,4625.8,3.7885]
[1755076399941,0.647825,4627.0,4625.8,3.309]
[1755076400148,16.23938264,4626.9,4625.8,3.309]
[1755076400477,16.23938264,4626.9,4625.7,5.18]
[1755076400478,5.00867569,4626.8,4625.7,5.18]
[1755076400683,16.12038264,4626.4,4625.8,5.18]
[1755076400884,16.12038264,4626.4,4625.9,5.18]
[1755076401050,0.119,4626.3,4626.0,5.18]
[1755076401252,16.12038264,4626.4,4624.7,0.55]
[1755076401487,0.766921,4626.2,4624.7,0.55]
[1755076401689,0.766921,4626.2,4624.8,3.307]
[1755076402155,0.96821848,4626.2,4624.8,3.307]
[1755076402352,0.766921,4626.2,4624.8,3.307]
[1755076402553,0.96827276,4626.2,4624.8,3.307]
[1755076402887,1.87006937,4626.1,4624.8,3.307]
[1755076403248,1.87006937,4626.1,4624.8,3.7796]
[1755076403758,2.51801137,4626.1,4624.8,3.7796]
[1755076404600,0.20141097,4626.0,4624.8,3.7796]
[1755076405173,0.20141097,4626.0,4624.9,0.4795]
[1755076405396,0.28384223,4625.9,4625.0,7.873]
[1755076406879,0.28384223,4625.9,4625.0,8.3456]
[1755076407269,0.28384223,4625.9,4625.1,0.9521]
[1755076407756,0.647948,4626.0,4625.1,0.9521]
[1755076409056,0.647948,4626.0,4625.2,0.4726]
[1755076412185,14.5,4625.3,4625.2,0.4726]
[1755076412484,14.5,4625.3,4625.2,0.9469]
[1755076415381,14.5,4625.3,4625.1,0.001]
[1755076415582,1.45,4625.2,4625.1,0.001]
[1755076415812,0.766945,4626.2,4625.1,0.001]
[1755076416118,14.5,4625.2,4625.1,0.9192]
[1755076419920,14.5,4625.2,4625.1,4.2172]
[1755076424695,14.5,4625.2,4625.1,4.7672]
[1755076425025,14.0,4625.2,4625.1,7.7672]
[1755076425390,14.0,4625.2,4625.1,10.4602]
[1755076428433,14.108,4625.2,4625.1,9.9859]
[1755076428600,14.108,4625.2,4625.1,6.9859]
[1755076429133,14.108,4625.2,4625.1,6.542]
[1755076429308,15.5188,4625.2,4625.1,3.299]
[1755076430328,15.5188,4625.2,4625.1,3.297]
[1755076432932,14.0,4625.2,4625.1,3.847]
[1755076433108,14.108,4625.2,4625.1,4.7652]
[1755076434549,14.108,4625.2,4625.1,4.2909]
[1755076435041,14.108,4625.2,4625.1,3.299]
[1755076435536,14.108,4625.2,4625.1,11.172]
[1755076435723,15.5188,4625.2,4625.1,11.172]
[1755076438235,15.9999,4625.2,4624.7,2.695]
[1755076438541,1.4128,4625.2,4625.1,5.18]
[1755076438737,0.002,4625.2,4625.1,5.18]
[1755076438939,14.81203391,4625.2,4625.1,5.18]
[1755076439107,14.81199891,4625.2,4625.1,5.18]
[1755076439734,14.61,4625.2,4625.1,5.18]
[1755076439938,14.61,4625.2,4625.1,8.479]
[1755076440238,16.27299709,4625.2,4625.1,8.479]
[1755076440736,16.071,4625.2,4625.1,8.479]
[1755076442354,14.61,4625.2,4625.1,8.9169]
[1755076445442,14.61,4625.2,4625.1,11.6109]
[1755076450376,14.61,4625.2,4625.1,12.1082]
[1755076452777,14.61,4625.2,4625.1,11.6109]
[1755076453650,14.61,4625.2,4625.1,11.173]
[1755076453960,14.61,4625.2,4625.1,5.18]
[1755076454150,16.071,4625.2,4625.1,8.476]
[1755076454457,16.5569,4625.2,4624.7,0.001]
[1755076454659,0.108,4624.8,4624.7,0.001]
[1755076455024,14.608,4624.8,4624.7,0.001]
[1755076455457,14.608,4624.8,4624.7,7.875]
[1755076455763,14.608,4624.8,4624.7,7.874]
[1755076456060,16.11739,4624.8,4624.7,7.874]
[1755076456830,16.11739,4624.8,4624.7,11.17]
[1755076459032,16.31945911,4624.8,4624.7,11.17]
[1755076459658,16.31947778,4624.8,4624.7,11.17]
[1755076460033,16.31947897,4624.8,4624.7,11.17]
[1755076460656,16.31947897,4624.8,4624.7,5.181]
[1755076460860,16.31947897,4624.8,4624.2,0.001]
[1755076461061,0.108,4624.3,4624.2,0.001]
[1755076461475,14.608,4624.3,4624.2,0.4389]
[1755076462060,14.608,4624.3,4624.2,3.7349]
[1755076462374,14.608,4624.3,4624.2,3.297]
[1755076462671,14.608,4624.3,4623.9,0.001]
[1755076462672,14.81004972,4624.3,4623.9,0.001]
[1755076462982,1.66284972,4624.2,4623.9,0.001]
[1755076463147,0.20204972,4624.1,4623.9,0.001]
[1755076463472,14.9859,4624.1,4623.9,0.001]
[1755076463771,34.42733236,4624.1,4623.9,0.001]
[1755076463958,18.30694972,4624.1,4623.9,0.001]
[1755076464469,18.30694972,4624.1,4624.0,3.298]
[1755076464655,20.14844469,4624.1,4623.7,0.001]
[1755076464863,0.79594972,4624.0,4623.7,0.001]
[1755076465264,17.5,4623.8,4623.7,0.001]
[1755076465465,17.70204972,4623.8,4623.7,5.182]
[1755076465669,17.70204972,4623.8,4623.7,5.181]
[1755076465853,19.54354469,4623.8,4623.7,5.181]
[1755076466176,19.54354469,4623.8,4623.7,8.478]
[1755076466877,19.54354469,4623.8,4623.7,9.4132]
[1755076466878,16.44949497,4623.8,4623.7,9.4132]
[1755076467079,14.608,4623.8,4623.7,9.4132]
[1755076467776,14.608,4623.8,4623.4,0.001]
[1755076467979,0.108,4623.8,4623.4,0.001]
[1755076468490,14.5,4623.7,4623.4,0.001]
[1755076469483,14.5,4623.7,4623.6,3.3]
[1755076469647,14.5,4623.7,4623.6,4.2324]
[1755076470384,15.9608,4623.7,4623.4,0.001]
[1755076470587,0.9407,4623.6,4623.4,0.001]
[1755076470757,0.9407,4623.6,4623.5,1.872]
[1755076470955,18.4407,4623.6,4623.5,1.872]
[1755076471263,19.81067,4623.6,4623.5,1.872]
[1755076471459,16.34407,4623.6,4623.5,1.872]
[1755076471660,14.5,4623.6,4623.5,2.8044]
[1755076472483,14.5,4623.6,4623.5,2.3268]
[1755076474984,14.5,4623.6,4623.5,2.8044]
[1755076475458,14.5,4623.6,4623.5,10.6804]
[1755076478899,14.5,4623.6,4623.5,10.7528]
[1755076479095,14.5,4623.6,4623.5,8.90341235]
[1755076479976,14.5,4623.6,4623.5,11.90341235]
[1755076481191,14.502,4623.6,4623.5,11.90341235]
[1755076481366,14.502,4623.6,4623.5,6.72141235]
[1755076481759,14.502,4623.6,4623.5,6.3544]
[1755076482802,14.502,4623.6,4623.5,5.3268]
[1755076483501,14.502,4623.6,4623.5,4.872]
[1755076484504,14.502,4623.6,4623.5,1.872]
[1755076485508,14.502,4623.6,4623.5,9.747]
[1755076487375,15.66633446,4623.6,4623.5,9.746]
[1755076487573,15.66633446,4623.6,4623.5,7.875]
[1755076487574,16.14043446,4623.6,4623.5,7.875]
[1755076488306,16.14043446,4623.6,4623.5,5.181]
[1755076488805,16.14043446,4623.6,4623.5,8.481]
[1755076489477,15.66633446,4623.6,4623.5,8.481]
[1755076491423,15.19973446,4623.6,4623.5,8.481]
[1755076492519,15.19973446,4623.6,4623.5,5.182]
[1755076492697,15.19973446,4623.6,4623.4,0.001]
[1755076492898,1.53077345,4623.5,4623.4,0.001]
[1755076493220,0.002,4623.6,4623.4,0.001]
[1755076493424,14.5,4623.5,4623.4,0.001]
[1755076493596,14.5,4623.5,4623.4,3.299]
[1755076493997,14.608,4623.5,4623.4,4.2314]
[1755076494506,14.608,4623.5,4623.4,5.09865485]
[1755076494808,14.5,4623.5,4623.4,5.09865485]
[1755076495192,14.5,4623.5,4623.4,7.26156526]
[1755076495396,14.5,4623.5,4623.4,15.24556526]
[1755076495835,14.5,4623.5,4623.4,14.92831041]
[1755076496201,14.5,4623.5,4623.4,12.7654]
[1755076497328,14.5,4623.5,4623.4,12.6574]
[1755076498021,0.002,4623.6,4623.5,3.55]
[1755076498332,0.002,4623.6,4623.5,4.4324]
[1755076498504,0.002,4623.6,4623.5,1.4824]
[1755076498704,0.002,4623.6,4623.5,4.7864]
[1755076499111,0.002,4623.6,4623.5,4.3088]
[1755076499518,14.502,4623.6,4623.5,4.3088]
[1755076499931,14.502,4623.6,4623.5,4.7751]
[1755076500306,14.502,4623.6,4623.5,4.2251]
[1755076500928,14.502,4623.6,4623.4,0.001]
[1755076501130,0.108,4623.5,4623.4,0.001]
[1755076501328,1.012,4623.5,4623.4,3.304]
[1755076501637,15.512,4623.5,4623.4,3.304]
[1755076502004,15.512,4623.5,4623.4,3.303]
[1755076502338,15.512,4623.5,4623.0,0.001]
[1755076502552,0.002,4623.6,4623.0,0.001]
[1755076502553,0.108,4623.1,4623.0,0.001]
[1755076503046,15.082,4623.1,4623.0,0.001]
[1755076503412,15.082,4623.1,4623.0,3.304]
[1755076504025,14.608,4623.1,4623.0,3.304]
[1755076505350,14.608,4623.1,4623.0,11.18]
[1755076505564,14.608,4623.1,4623.0,12.15806403]
[1755076505725,14.608,4623.1,4623.0,11.6261]
[1755076506345,14.608,4623.1,4623.0,11.18]
[1755076509315,14.608,4623.1,4623.0,8.486]
[1755076511071,15.082,4623.1,4623.0,8.486]
[1755076513146,15.082,4623.1,4623.0,3.304]
[1755076513328,16.61266,4623.1,4623.0,3.304]
[1755076513824,16.13866,4623.1,4623.0,3.304]
[1755076514850,16.61266,4623.1,4623.0,3.304]
[1755076515419,16.61266,4623.1,4623.0,11.181]
[1755076515820,16.13866,4623.1,4623.0,11.181]
[1755076516542,16.61266,4623.1,4623.0,11.181]
[1755076517730,16.13866,4623.1,4623.0,11.181]
[1755076518419,14.608,4623.1,4623.0,11.181]
[1755076518615,14.608,4623.1,4623.0,8.9321]
[1755076518820,14.608,4623.1,4623.0,9.3984]
[1755076520430,14.608,4623.1,4623.0,8.9321]
[1755076521025,14.608,4623.1,4623.0,8.486]
[1755076521225,16.0688,4623.1,4623.0,0.001]
[1755076521450,16.5428,4623.1,4623.0,0.001]
[1755076521759,16.9728,4623.1,4623.0,3.299]
[1755076522060,16.9728,4623.1,4622.9,0.001]
[1755076522226,2.60128,4623.0,4622.9,0.001]
[1755076522428,0.904,4623.0,4622.9,0.001]
[1755076522737,15.404,4623.0,4622.9,0.001]
[1755076523164,15.404,4623.0,4622.9,3.3]
[1755076524861,14.5,4623.0,4622.9,3.3]
[1755076525158,14.608,4623.0,4622.9,3.7461]
[1755076525357,14.608,4623.0,4622.9,11.6231]
[1755076525728,14.608,4623.0,4622.9,12.0894]
[1755076526062,14.608,4623.0,4622.9,11.177]
[1755076526860,14.608,4623.0,4622.9,11.6231]
[1755076527161,14.608,4623.0,4622.9,11.177]
[1755076527460,14.608,4623.0,4622.9,11.6231]